Cogmind - Beta 12 *** ADVENTURER MODE // 2023.12.13 @ 05:48:22 Player: Peregrine Result: Destroyed by B-74 Champion with Powered Hammer Performance ------------- Evolutions (9) 4500 Regions Visited (20) 4000 Robots Destroyed (379) 1895 Value Destroyed (20233) 20233 Prototype IDs (36) 720 Alien Tech Used (0) 0 Bonus (17276) 17276 TOTAL SCORE: 48624 Bonus ------- Triggered High Security 1000 High Alert Combat Kills 7970 Follower Combat Kills 7617 Entered Garrisons 1200 Used RIF Installer 3500 Friendly Fire -4011 Cogmind --------- Core Integrity 0/1600 Matter 163/300 Energy 19/100 System Corruption 21% Temperature Cool (2) Movement Hovering (60) Location -1/Access Parts ------- > --- POWER (2) -------- (None) > --- PROPULSION (8) --- Improved Antigrav System > --- UTILITY (12) ----- Spectral Analyzer Advanced Target Analyzer Advanced Target Analyzer Relay Coupler [Duelist] (42) > --- WEAPON (3) ------- (None) > --- INVENTORY (5) ---- Light Antimatter Reactor Experimental Q-thruster Antimissile System Enhanced Quantum Rifle Advanced Remote Datajack Peak State ------------ > --- POWER ------------ Quantum Reactor Quantum Reactor > --- PROPULSION ------- Myomer Leg Myomer Leg Myomer Leg Myomer Leg Advanced Myomer Leg Advanced Myomer Leg Biometal Leg Centrium Leg > --- UTILITY ---------- Experimental Heat Sink Large Storage Unit Spectral Analyzer Advanced Targeting Computer Advanced Target Analyzer Advanced Target Analyzer Advanced Phase Shifter Improved Hacking Suite Relay Coupler [Grunt] Relay Coupler [Duelist] Relay Coupler [Demolisher] Experimental Field Recycling Unit > --- WEAPON ----------- Phase Gun Enhanced Quantum Rifle KE Penetrator > --- INVENTORY -------- Quantum Reactor Quantum Reactor Enhanced Flexi-carbon Leg Enhanced Armored Leg Centrium Leg Q-thruster Core Analyzer Graphene Brace Advanced Focal Shield Antimissile System Enhanced Quantum Rifle Enhanced Quantum Rifle Enhanced Gamma Bomb Array Mini Smartbomb Launcher Advanced Remote Datajack [Rating: 179] Favorites ----------- Power Light Nuclear Core Engine Cooled Ion Engine Power Core Light Nuclear Core Reactor Antimatter Reactor Propulsion Carbon-fiber Leg Treads Improved Medium Treads Leg Carbon-fiber Leg Wheel Centrium Wheel Hover Unit Antigrav System Flight Unit Field Propulsion Drive Utility Relay Coupler [Grunt] Device Advanced Heat Sink Storage Large Storage Unit Processor Advanced Targeting Computer Hackware Relay Coupler [Grunt] Protection Light Armor Plating Weapon Gatling Laser Energy Gun Gatling Laser Energy Cannon Disruptor Cannon Ballistic Gun Railgun Ballistic Cannon Hardcell Cannon Launcher Mini Smartbomb Launcher Special Weapon Remote Datajack Impact Weapon Hammer Build | -11 -10 -9 -9 -8 -7 -7 -6 -6 -6 -6 -5 -5 -5 -5 -4 -3 -3 -3 -2 -1 ------- Run | Jun Mat Mat Sto Mat Fac Gar Fac Gar Fac Gar Fac Gar Fac Gar Fac Res Gar Res Res Acc Slots Evolved 18 | . . 2 . 2 2 . 2 . . . 2 . . . 2 2 . . 2 2 Power 1 | . . . . 1 . . . . . . . . . . . . . . . . Propulsion 6 | . . . . 1 1 . . . . . 1 . . . . 1 . . . 2 Utility 10 | . . 2 . . 1 . 2 . . . 1 . . . 2 . . . 2 . Weapon 1 | . . . . . . . . . . . . . . . . 1 . . . . Parts Attached 622 | 1 2 3 27 24 18 73 6 26 32 55 4 20 51 44 11 30 38 59 41 57 Power 86 | . . 1 4 6 2 7 . 1 4 5 . 2 9 9 1 5 3 14 2 11 Engine 21 | . . 1 4 4 2 3 . 1 3 2 . . 1 . . . . . . . Core 22 | . . . . 2 . 4 . . 1 3 . 1 5 4 . . . 2 . . Reactor 43 | . . . . . . . . . . . . 1 3 5 1 5 3 12 2 11 Propulsion 174 | . . 1 6 9 5 17 . 10 10 16 2 8 13 12 6 8 6 10 12 23 Treads 10 | . . . 2 1 . 4 . 1 2 . . . . . . . . . . . Leg 136 | . . 1 2 8 3 9 . 9 7 16 2 7 4 12 6 6 6 10 11 17 Wheel 7 | . . . 1 . 2 3 . . . . . . . . . . . . 1 . Hover 14 | . . . . . . . . . 1 . . 1 8 . . . . . . 4 Flight 7 | . . . 1 . . 1 . . . . . . 1 . . 2 . . . 2 Utility 186 | . 1 . 5 4 8 14 5 11 13 18 2 5 12 13 4 10 18 17 13 13 Device 92 | . . . 1 1 2 8 2 6 6 5 1 1 5 7 2 6 11 12 8 8 Storage 6 | . . . 1 2 1 . . . . . . . . . 1 . . 1 . . Processor 22 | . . . 3 . 5 2 1 1 . . . . . . . 2 . 2 3 3 Hackware 47 | . . . . . . 3 2 1 4 12 1 4 5 5 1 . 6 1 2 . Protection 19 | . 1 . . 1 . 1 . 3 3 1 . . 2 1 . 2 1 1 . 2 Artifact . | . . . . . . . . . . . . . . . . . . . . . Weapon 176 | 1 1 1 12 5 3 35 1 4 5 16 . 5 17 10 . 7 11 18 14 10 Energy Gun 70 | 1 . . 3 2 3 22 1 1 2 6 . 2 4 1 . . 5 8 4 5 Energy Cannon 24 | . . . 5 . . . . . . 3 . 3 3 . . 2 3 3 1 1 Ballistic Gun 26 | . . 1 1 3 . 9 . 3 1 2 . . 2 3 . . . . 1 . Ballistic Cannon 17 | . . . . . . 2 . . 1 . . . 4 4 . 3 1 1 1 . Launcher 13 | . . . 1 . . . . . . . . . . . . . . 2 6 4 Special Weapon 21 | . . . . . . . . . 1 5 . . 4 2 . 2 2 4 1 . Impact Weapon 5 | . 1 . 2 . . 2 . . . . . . . . . . . . . . Slashing Weapon . | . . . . . . . . . . . . . . . . . . . . . Piercing Weapon . | . . . . . . . . . . . . . . . . . . . . . Special Melee Weapon . | . . . . . . . . . . . . . . . . . . . . . Unidentified Prototypes 33 | . . . 7 . 1 1 . 1 2 . . . 4 . . 4 1 6 5 1 Corrupted Parts 4 | . . . . . . . . . . . . . 2 . . . . . 2 . System Corruption 29 | . . . . . . . . . . . . . 11 . . . . . 18 . Parts Lost 87 | . . . 9 3 7 7 . . . 9 1 . 10 2 . 2 . 6 7 24 Power 15 | . . . 2 2 1 1 . . . 2 . . . 1 . . . . 2 4 Propulsion 33 | . . . 3 1 3 5 . . . 1 1 . 5 1 . 1 . 1 . 11 Utility 27 | . . . 3 . 2 . . . . 5 . . 4 . . 1 . 3 3 6 Weapon 12 | . . . 1 . 1 1 . . . 1 . . 1 . . . . 2 2 3 Highest Loss Streak 19 | . . . 4 2 7 3 . . . 2 1 . 3 1 . 1 . 4 3 19 To Critical Strikes 2 | . . . 1 . . . . . . . . . . . . . . 1 . . Average Slot Usage (%) 94 | . 86 77 77 85 89 96 100 97 94 95 93 99 97 97 100 93 95 95 94 91 Engine 5 | . 14 11 10 7 13 10 13 13 11 5 5 . . . . . . . . . Core 1 | . . . . 4 . 3 . . . 4 5 5 4 1 . . . . . . Reactor 3 | . . . . . . . . . . . . 4 5 9 10 9 9 8 7 7 Treads 2 | . . . 10 3 . 3 20 6 3 . . . . . . . . . . . Leg 22 | . 28 22 2 20 24 20 . 15 18 25 24 28 21 24 26 27 27 27 26 25 Wheel 1 | . . . 2 . . 5 6 1 . . . . . . . . . . . . Device 8 | . . . 1 4 11 10 12 15 12 9 5 . 3 4 10 6 8 15 15 9 Storage 6 | . 14 11 11 9 7 7 6 6 6 6 5 5 5 5 5 4 4 4 4 4 Processor 7 | . . . 17 13 12 15 13 9 6 . . . . . . 2 4 4 10 15 Hackware 17 | . . . . . . 2 13 13 14 24 32 39 34 34 36 31 26 20 16 11 Protection 1 | . 1 11 . 4 3 . . . 3 1 . . 1 . . . . . . 3 Energy Gun 5 | . 14 11 2 9 13 10 6 4 1 4 . 1 . . . . 3 5 5 7 Energy Cannon 2 | . . . 14 4 . . . . . 2 5 3 4 . . . 1 1 . . Ballistic Gun 1 | . 3 8 . 4 . 2 5 7 5 1 . . . 1 . . . . . 2 Ballistic Cannon 1 | . . . . . . . . . . . . . . 3 5 6 3 1 1 . Special Weapon 1 | . . . . . . . . . 5 3 5 5 4 4 5 1 1 1 . . Naked Turns . | . . . . . . . . . . . . . . . . . . . . . Heaviest Build 125 | 12 15 15 30 39 54 68 68 70 73 60 48 58 67 73 77 105 115 125 103 124 Greatest Support 221 | 20 20 20 40 40 58 90 90 90 87 78 75 75 75 85 100 128 140 176 174 221 Greatest Overweight (x) 13 | . . . 9 2 3 3 . 4 3 . . 13 6 1 . 1 . 1 . 1 Average Overweight (x) . | . . . . . . 1 . . . . . . . . . . . . . . Largest Inventory Capacity 15 | 8 8 8 10 15 15 15 15 15 15 15 15 15 15 15 15 15 15 15 15 15 Average Capacity 14 | 8 8 8 9 10 12 15 15 15 15 15 15 15 15 15 15 15 15 15 15 14 Most Carried 15 | 8 8 8 8 10 14 15 15 15 15 15 15 15 15 15 15 15 15 15 15 15 Average Carried 12 | 6 6 6 4 7 11 14 13 14 14 13 14 14 14 14 14 13 13 13 12 13 Final Capacity 15 | 8 8 8 10 10 15 15 15 15 15 15 15 15 15 15 15 15 15 15 15 5 Final Carried 15 | 8 7 7 5 10 13 15 15 15 13 15 15 15 13 15 15 13 15 12 15 5 Class Distribution -------------------- 29% | Botlord-Mutant 29% | Scavenger-Mutant 15% | Bothacker-Mutant 12% | Mutant 4% | Botlord-Tank 3% | Botlord-Gunner 3% | Scavenger-Gunner Dominant Class ---------------- Mutant | -10/Materials Mutant | -9/Materials Mutant | -9/Storage Scavenger-Mutant | -8/Materials Scavenger-Mutant | -7/Factory Scavenger-Mutant | -7/Garrison Scavenger-Mutant | -6/Factory Scavenger-Mutant | -6/Garrison Bothacker-Mutant | -6/Factory Bothacker-Mutant | -6/Garrison Botlord-Mutant | -5/Factory Botlord-Mutant | -5/Garrison Botlord-Mutant | -5/Factory Botlord-Mutant | -5/Garrison Botlord-Mutant | -4/Factory Botlord-Tank | -3/Research Botlord-Mutant | -3/Garrison Botlord-Tank | -3/Research Bothacker-Mutant | -2/Research Scavenger-Gunner | -1/Access Resources | -11 -10 -9 -9 -8 -7 -7 -6 -6 -6 -6 -5 -5 -5 -5 -4 -3 -3 -3 -2 -1 ----------- Run | Jun Mat Mat Sto Mat Fac Gar Fac Gar Fac Gar Fac Gar Fac Gar Fac Res Gar Res Res Acc Matter Collected 12788 | 241 29 39 353 363 140 1062 77 971 537 1029 70 362 774 1352 207 1027 1082 1540 835 698 Remotely 8 | . . . . . . . . . . . . . . . . . . . 8 . Salvage Created 20250 | 124 115 238 1760 1119 499 2130 192 1275 432 1039 . 56 1254 1299 291 884 1025 2610 1928 1980 Parts 772 | 9 5 7 101 62 22 63 8 16 15 33 . 2 50 45 4 37 44 97 64 88 Haulers Intercepted 19 | . 1 . 6 1 2 . . . 2 . . . 1 . 1 1 1 2 . 1 Recyclers Shooed 14 | . . . . 1 1 . . . 1 . . . 5 . 2 1 . 1 1 1 Parts Field Recycled 4 | . . . . . . . . . . . . . . . . . . . 4 . Retrieved Matter 110 | . . . . . . . . . . . . . . . . . . . 110 . Parts Self-Destructed . | . . . . . . . . . . . . . . . . . . . . . Prevented . | . . . . . . . . . . . . . . . . . . . . . Kills | -11 -10 -9 -9 -8 -7 -7 -6 -6 -6 -6 -5 -5 -5 -5 -4 -3 -3 -3 -2 -1 ------- Run | Jun Mat Mat Sto Mat Fac Gar Fac Gar Fac Gar Fac Gar Fac Gar Fac Res Gar Res Res Acc Combat Hostiles Destroyed 306 | . . 5 31 19 6 35 3 37 5 19 . 1 16 24 . 12 17 32 20 24 Melee 2 | . . . . . . . . . . 2 . . . . . . . . . . Guns 163 | . . 5 6 10 5 32 3 36 5 15 . 1 4 12 . . 3 12 2 12 Cannons 95 | . . . 19 9 . . . . . . . . 9 12 . 12 13 15 3 3 AOE 26 | . . . 5 . . . . . . 1 . . . . . . . 3 10 7 Classes Destroyed 21 | 2 3 2 4 1 1 4 . 2 . . . . . . . . . 1 . 1 Worker 25 | . 2 . 3 5 2 . . . . . . . . . . 1 . 2 8 2 Builder 10 | . . . 2 1 . . . . 1 . . . . . . 4 . 1 1 . Tunneler 4 | 2 . . . . . . . . . . . . . . . . . 2 . . Hauler 19 | . 1 . 6 1 2 . . . 2 . . . 1 . 1 1 1 2 . 1 Recycler 17 | 1 . . 3 2 1 . . . . . . . 2 . 2 . . 3 2 1 Mechanic 5 | . . . 1 1 . . . . . . . . . . . 1 . . 2 . Operator 2 | . . . 1 1 . . . . . . . . . . . . . . . . Watcher 11 | . 2 . 2 1 1 . 1 . . . . . 2 . . . . 1 1 . Swarmer 65 | . . . 8 4 . 15 . . . 4 . . 4 8 . 3 5 4 7 3 Cutter 1 | . . . . . . . . 1 . . . . . . . . . . . . Saboteur 1 | . . . . . . . . . . . . . . . . . . . . 1 Grunt 124 | . . 4 13 9 2 9 . 3 2 12 . 1 7 18 . 5 7 12 9 11 Brawler 10 | . . . . . . 1 . 1 . . . . . 1 . 1 . 3 1 2 Duelist 3 | . . . . . . 1 . . . . . . . . . . . 1 . 1 Protector 2 | . . . . . . . . . . . . . . . . . . 2 . . Sentry 23 | . . 1 10 4 . 2 2 1 1 1 . . . . . 1 . . . . Specialist 4 | . . . . . . 1 . . . . . . . . . . 2 1 . . Hunter 11 | . . . . 2 2 1 1 . . . . . . . . . 2 1 2 . Programmer 37 | . . . . . 2 4 . . 2 2 . . 4 . . 4 1 9 2 7 Behemoth 4 | . . . . . . 1 . . . . . . 1 . . 1 1 . . . Assembled 31 | . . . . . . . . 31 . . . . . . . . . . . . Thug 1 | . . . . . . . . . . . . . 1 . . . . . . . Best Kill Streak 14 | 2 2 4 10 6 6 8 2 14 1 5 . 1 3 6 1 9 4 9 10 6 Combat Bots Only 14 | . . 4 7 6 5 8 2 14 1 5 . 1 3 6 . 6 3 7 7 5 Max Kills in Single Turn 3 | 1 1 1 2 2 2 2 1 2 1 1 . 1 1 1 1 2 1 2 3 3 Gunslinging 1 | . . . . . . 1 . . . . . . . . . . . . . 1 Exploded 2 | . . . 2 . . . . . . 1 . . . . . . . 2 2 2 Melee 1 | . . . . . . . . . . 1 . . . . . . . . . . Uniques/NPCs Destroyed . | . . . . . . . . . . . . . . . . . . . . . Combat | -11 -10 -9 -9 -8 -7 -7 -6 -6 -6 -6 -5 -5 -5 -5 -4 -3 -3 -3 -2 -1 -------- Run | Jun Mat Mat Sto Mat Fac Gar Fac Gar Fac Gar Fac Gar Fac Gar Fac Res Gar Res Res Acc Damage Taken 22647 | . . 258 994 1017 969 1404 192 418 225 1638 135 166 1802 767 . 418 1285 3005 2223 5731 Core 3687 | . . 62 157 183 110 127 10 33 28 253 79 16 196 125 . 8 136 231 333 1600 Absorbed by Shields 2068 | . . . . . . 386 54 269 87 14 . . . . . 192 215 851 . . Regen/Repaired (Parts) 211 | . . . 85 47 . . . . . . . . 79 . . . . . . . Core Remaining (%) 74 | 100 100 . 45 66 . 66 . . . 61 . . . 58 100 . . 71 77 . Volleys Fired 1385 | 9 8 20 82 59 26 137 20 112 70 154 6 53 112 117 14 58 74 140 48 66 Largest 3 | 2 2 2 2 2 2 2 2 2 2 2 1 1 2 2 1 2 3 3 3 3 Hottest 250 | 70 70 70 168 168 160 188 160 160 63 161 81 88 168 83 65 125 250 250 163 245 Shots Fired 2145 | 18 10 39 144 116 45 261 33 194 72 190 6 53 129 128 14 99 143 252 85 114 Gun 1335 | 18 10 39 51 82 45 260 33 194 47 131 . 8 40 59 . . 41 139 48 90 Cannon 634 | . . . 88 34 . 1 . . 5 40 1 20 70 53 14 92 99 91 14 12 Launcher 43 | . . . 5 . . . . . . . . . . . . . . 7 19 12 Special 133 | . . . . . . . . . 20 19 5 25 19 16 . 7 3 15 4 . Kinetic 783 | 16 2 19 16 46 . 31 16 128 36 44 . . 33 112 14 92 81 44 21 32 Thermal 1004 | 2 8 20 113 70 45 230 17 66 . 87 . 8 18 . . . 58 168 37 57 Explosive 25 | . . . 5 . . . . . . . . . . . . . . 7 9 4 Electromagnetic 200 | . . . 10 . . . . . 16 40 1 20 59 . . . 1 18 14 21 Robot Hit Streak 65 | 15 17 13 26 26 31 65 19 57 12 26 3 17 25 24 21 14 30 25 17 26 Robot Miss Streak 6 | 1 1 1 5 3 3 3 1 6 2 2 1 2 4 5 . 3 6 3 2 2 Penetration Max 2 | . . . . . . . . 1 1 1 . . 1 2 . . . 1 1 . Secondary Targets 10 | . . 1 . 1 . 1 1 3 . . . . 1 . . . . . 1 1 Max Gunslinging Chain 1 | . . 1 . 1 . 1 1 1 . . . . 1 . . . . . 1 1 Shots Hit Robots 1575 | 16 13 35 94 98 44 187 21 141 63 100 4 32 110 81 14 75 103 198 53 93 Core Hits 1003 | 4 3 13 59 57 41 170 16 130 17 59 . 6 48 55 5 40 45 81 77 77 Critical Kills 9 | . . . 2 . . . . . 1 . . . . 3 . . 1 1 1 . Critical Parts Destroyed 8 | . 1 . . . . . 1 1 2 . . . . 1 . . . . 1 1 Critical Strikes 53 | . 1 1 2 . . . 1 1 5 5 . . 1 6 1 4 4 9 6 6 Burn 10 | . . 1 . . . . . . . 5 . . . . . . . 2 . 2 Meltdown 4 | . . . 2 . . . . . . . . . . . . . 1 1 . . Destroy 12 | . . . . . . . 1 1 3 . . . . 4 . . . . 2 1 Blast 19 | . . . . . . . . . 1 . . . . 2 1 4 3 5 3 . Corrupt 7 | . . . . . . . . . 1 . . . 1 . . . . 1 1 3 Smash 1 | . 1 . . . . . . . . . . . . . . . . . . . Melee Attacks 35 | . 10 . 15 . . 10 . . . . . . . . . . . . . . Impact 35 | . 10 . 15 . . 10 . . . . . . . . . . . . . . Slashing . | . . . . . . . . . . . . . . . . . . . . . Piercing . | . . . . . . . . . . . . . . . . . . . . . Sneak Attacks 2 | . 2 . . . . . . . . . . . . . . . . . . . Combat Hostiles . | . . . . . . . . . . . . . . . . . . . . . Follow-up Attacks . | . . . . . . . . . . . . . . . . . . . . . Damage Inflicted 52258 | 182 344 371 2438 2237 1249 5373 465 3816 1282 2163 18 279 3414 2733 526 3452 4017 8402 4685 4812 Guns 26297 | 182 77 371 468 1347 1236 5271 465 3816 1087 1757 . 240 849 1487 . . 909 3546 1106 2083 Cannons 19399 | . . . 1638 890 . 102 . . 195 205 18 39 2364 1246 526 3452 3092 4299 881 452 Explosions 6175 | . . . 321 . . . . . . 180 . . 186 . . . . 518 2698 2272 Melee 267 | . 267 . . . . . . . . . . . . . . . . . . . Ramming 120 | . . . 11 . 13 . . . . 21 . . 15 . . . 16 39 . 5 Kinetic 20282 | 157 13 135 143 602 . 135 150 2313 1000 528 . . 1369 2733 526 3452 2629 2674 987 736 Thermal 23393 | 25 64 236 1936 1635 1236 5238 315 1503 . 1409 . 240 645 . . . 1372 4767 1246 1526 Explosive 3079 | . . . 218 . . . . . . . . . . . . . . 518 729 1614 Electromagnetic 5117 | . . . 130 . . . . . 282 205 18 39 1385 . . . . 404 1723 931 Impact 267 | . 267 . . . . . . . . . . . . . . . . . . . Slashing . | . . . . . . . . . . . . . . . . . . . . . Piercing . | . . . . . . . . . . . . . . . . . . . . . Highest Corruption 25 | . . . 1 . 4 8 . . 5 13 . . 16 16 . 2 2 11 25 20 Average Corruption 6 | . . . 1 . 3 6 . . 4 7 . . 7 16 . 2 2 6 7 10 Corruption Purged . | . . . . . . . . . . . . . . . . . . . . . Corruption Blocked . | . . . . . . . . . . . . . . . . . . . . . Effects 449 | . . . 7 . 4 117 . . 10 80 . . 19 94 . 5 14 52 21 26 Message Errors 104 | . . . 2 . 2 27 . . 1 21 . . 4 19 . . 1 14 4 9 Matter Fused 109 | . . . 2 . . 27 . . 2 21 . . 8 19 . 1 6 16 2 5 Heat Flow Errors 48 | . . . . . 1 14 . . . 3 . . 2 16 . 1 2 6 2 1 Energy Discharges 55 | . . . . . 1 16 . . 1 11 . . 1 8 . 1 1 4 8 3 Parts Rejected 5 | . . . . . . . . . 2 . . . . 1 . . 1 . . 1 Parts Fused 6 | . . . . . . 2 . . 1 . . . . . . . 1 2 . . Data Loss (minor) 54 | . . . 1 . . 15 . . 1 11 . . . 14 . . 1 6 2 3 Data Loss (major) 23 | . . . 1 . . 3 . . 2 3 . . . 9 . 1 . . 2 2 Misfires 17 | . . . . . . 6 . . . 4 . . 1 4 . 1 . 1 . . Alerts 9 | . . . . . . 5 . . . 1 . . . 1 . . . 2 . . Misdirections 4 | . . . . . . . . . . 2 . . . 1 . . . . 1 . Weapon Failures 15 | . . . 1 . . 2 . . . 3 . . 3 2 . . 1 1 . 2 Overload Shots . | . . . . . . . . . . . . . . . . . . . . . Overflow Damage 1271 | . 81 . 23 3 . 62 . . . 25 . . 85 15 7 96 12 360 334 168 Projectiles 800 | . . . 23 3 . 62 . . . . . . 24 15 7 96 12 359 158 41 Explosions 390 | . . . . . . . . . . 25 . . 61 . . . . 1 176 127 Melee 81 | . 81 . . . . . . . . . . . . . . . . . . . Knockbacks 85 | . . . . . . 1 . . . . . . 17 8 3 33 11 7 5 . Impact . | . . . . . . . . . . . . . . . . . . . . . Kinetic 77 | . . . . . . 1 . . . . . . 17 6 3 29 10 6 5 . Secondary 8 | . . . . . . . . . . . . . . 2 . 4 1 1 . . Self-Inflicted Damage 765 | . . . 52 . . . . . . 28 . . 1 . . . . 95 262 327 Shots 38 | . . . 3 . . . . . . 1 . . . . . . . 2 17 15 Rammed 4 | . . . 3 . . . . . . . . . 1 . . . . . . . Targets Rammed 15 | . . . 3 . 1 . . . . 3 . . 3 . . . 1 2 . 2 Kicked 11 | . . . . . 1 . . . . 3 . . 2 . . . 1 2 . 2 Crushed . | . . . . . . . . . . . . . . . . . . . . . Highest Temperature 546 | 9 20 306 281 444 174 324 102 213 40 139 28 90 292 261 62 515 372 335 223 546 Average Temperature 95 | 6 7 131 61 167 66 63 34 72 16 26 12 31 86 71 25 95 99 107 37 201 Received Heat Transfer 4058 | . . 174 252 594 252 175 73 204 71 579 9 36 315 270 . 23 95 342 243 351 Effects 54 | . . . . 10 . 2 . . . . . . . . . 1 3 1 . 37 Shutdowns 16 | . . . . 3 . . . . . . . . . . . 1 . . . 12 Energy Bleed 10 | . . . . 2 . 2 . . . . . . . . . . 1 . . 5 Interference 17 | . . . . 5 . . . . . . . . . . . . 2 1 . 9 Short Circuit 2 | . . . . . . . . . . . . . . . . . . . . 2 Damage (minor) 3 | . . . . . . . . . . . . . . . . . . . . 3 Damage (major) 2 | . . . . . . . . . . . . . . . . . . . . 2 Damage (core) 4 | . . . . . . . . . . . . . . . . . . . . 4 Siege Activations . | . . . . . . . . . . . . . . . . . . . . . Robots Corrupted 12 | . . . . . . . . . . . . . 3 . . . . . 7 2 Combat Hostiles 10 | . . . . . . . . . . . . . 3 . . . . . 5 2 Parts Fried 28 | . 3 . . . . . . . . . . . . . . 1 . . 14 10 Impact Corruptions 4 | . 4 . . . . . . . . . . . . . . . . . . . Robots Melted 14 | . . . 2 . 1 6 . 1 . 1 . . . . . . 1 2 . . Combat Hostiles 10 | . . . 1 . 1 3 . 1 . 1 . . . . . . 1 2 . . Parts Melted 104 | . . 2 9 4 8 29 3 3 3 7 . . 2 . . 1 4 18 3 8 Heat Transferred 38705 | 74 185 740 2952 2818 2349 10642 725 3400 . 3385 . 463 1050 . . . 1442 5294 1373 1813 Parts Sabotaged 9 | . . . . . . . . . . . . . . . . . . 4 . 5 Parts Stolen . | . . . . . . . . . . . . . . . . . . . . . Parts Stripped . | . . . . . . . . . . . . . . . . . . . . . Power Chain Reactions 7 | . . . 2 . . . . . . 1 . . 2 . . . . . 2 . Missiles Intercepted . | . . . . . . . . . . . . . . . . . . . . . Alert | -11 -10 -9 -9 -8 -7 -7 -6 -6 -6 -6 -5 -5 -5 -5 -4 -3 -3 -3 -2 -1 ------- Run | Jun Mat Mat Sto Mat Fac Gar Fac Gar Fac Gar Fac Gar Fac Gar Fac Res Gar Res Res Acc Peak Influence 2721 | 15 85 183 588 590 157 2721 1372 1792 921 2244 1154 1874 1421 2072 1180 860 1567 1787 1650 1454 Initial 1237 | . 8 30 65 192 143 18 1237 846 815 515 1020 712 852 845 942 536 571 767 1100 1100 Average 1099 | 9 51 113 393 374 89 1235 1268 1357 824 1406 1070 1460 963 1641 1081 575 1147 1356 1357 1248 Maximum Alert Level 5 | . . . 2 2 . 5 4 5 3 5 4 5 4 5 4 3 4 5 5 4 Low Security (%) 7 | 100 100 100 9 6 100 9 . . . . . . . . . . . . . . Level 1 7 | . . . 32 39 . 19 . . . . . . . . . 16 . . . . Level 2 10 | . . . 57 53 . 5 . . . 4 . . 5 . . 64 10 . . . Level 3 19 | . . . . . . 14 . 9 99 28 78 11 60 10 43 18 23 16 . . Level 4 34 | . . . . . . 12 100 70 . 32 21 54 33 26 56 . 65 59 89 100 Level 5 19 | . . . . . . 37 . 20 . 33 . 34 . 62 . . . 21 . . High Security . | . . . . . . . . . . . . . . . . . . 2 9 . Max Security . | . . . . . . . . . . . . . . . . . . . . . Squads Dispatched 89 | . . 1 9 2 2 . 3 . 8 . 2 . 10 . 2 7 . 24 10 9 Investigation 14 | . . 1 4 1 . . . . . . 1 . 1 . . 1 . 3 . 2 Extermination 16 | . . . . . 1 . . . 3 . . . 2 . 1 2 . 3 2 2 Reinforcement 25 | . . . 2 1 1 . 1 . 2 . 1 . 2 . 1 2 . 9 2 1 Assault 24 | . . . . . . . 1 . 2 . . . 2 . . 1 . 8 6 4 Garrison 10 | . . . 3 . . . 1 . 1 . . . 3 . . 1 . 1 . . Intercept . | . . . . . . . . . . . . . . . . . . . . . Searches Triggered . | . . . . . . . . . . . . . . . . . . . . . Construction Impeded 7 | . . . . . . . . . . . 1 . 1 . . 1 . 2 1 1 Haulers Reinforced 8 | . . . . . . . . . 2 . . . 1 . 1 1 . 3 . . Active Scanning Responses . | . . . . . . . . . . . . . . . . . . . . . Cargo Convoy Interrupts 1 | . . . . . 1 . . . . . . . . . . . . . . . Stealth | -11 -10 -9 -9 -8 -7 -7 -6 -6 -6 -6 -5 -5 -5 -5 -4 -3 -3 -3 -2 -1 --------- Run | Jun Mat Mat Sto Mat Fac Gar Fac Gar Fac Gar Fac Gar Fac Gar Fac Res Gar Res Res Acc Distress Signals 22 | . . 1 3 2 1 . 1 . 3 . . . 3 . 1 2 . 3 2 . Communications Jammed 36 | . . . . . . . . . . . . . 30 . . 3 . . . 3 Distress Signals 30 | . . . . . . . . . . . . . 30 . . . . . . . Times Spotted 678 | . 3 6 36 22 13 35 4 61 27 50 6 35 56 48 5 35 28 111 48 49 Peak Tracking Total 15 | . 1 6 6 6 8 6 3 6 5 7 3 9 7 8 2 6 3 7 15 10 Tactical Retreats 10 | . . . . . . 1 . 4 . . . . . . . . . 1 2 2 Traps | -11 -10 -9 -9 -8 -7 -7 -6 -6 -6 -6 -5 -5 -5 -5 -4 -3 -3 -3 -2 -1 ------- Run | Jun Mat Mat Sto Mat Fac Gar Fac Gar Fac Gar Fac Gar Fac Gar Fac Res Gar Res Res Acc Traps Triggered 45 | . . . 1 . . 17 . 4 . 4 . 1 4 9 . . 2 . 2 1 Indirectly . | . . . . . . . . . . . . . . . . . . . . . Trap Hack Attempts . | . . . . . . . . . . . . . . . . . . . . . Triggered . | . . . . . . . . . . . . . . . . . . . . . Disarmed . | . . . . . . . . . . . . . . . . . . . . . Reprogrammed . | . . . . . . . . . . . . . . . . . . . . . Reused . | . . . . . . . . . . . . . . . . . . . . . Traps Extracted . | . . . . . . . . . . . . . . . . . . . . . Installed . | . . . . . . . . . . . . . . . . . . . . . Triggered 1 | . . . . . 1 . . . . . . . . . . . . . . . Machines | -11 -10 -9 -9 -8 -7 -7 -6 -6 -6 -6 -5 -5 -5 -5 -4 -3 -3 -3 -2 -1 ---------- Run | Jun Mat Mat Sto Mat Fac Gar Fac Gar Fac Gar Fac Gar Fac Gar Fac Res Gar Res Res Acc Machines Disabled 66 | . . . 7 . . 7 . 5 1 7 2 4 9 3 . 3 8 5 3 2 Max in Single Turn 2 | . . . 1 . . 2 . 2 1 1 . 1 1 1 . 1 1 1 1 1 Garrison Access 1 | . . . . . . . . . . . . . . . . . . 1 . . Garrison Relay 23 | . . . . . . 5 . 1 . 6 . 4 . 4 . . 3 . . . Phase Generator 1 | . . . . . . 1 . . . . . . . . . . . . . . Machines Repaired . | . . . . . . . . . . . . . . . . . . . . . Machines Sabotaged . | . . . . . . . . . . . . . . . . . . . . . Overloaded Fab Kills . | . . . . . . . . . . . . . . . . . . . . . Hacking | -11 -10 -9 -9 -8 -7 -7 -6 -6 -6 -6 -5 -5 -5 -5 -4 -3 -3 -3 -2 -1 --------- Run | Jun Mat Mat Sto Mat Fac Gar Fac Gar Fac Gar Fac Gar Fac Gar Fac Res Gar Res Res Acc Machines Accessed 63 | . 2 2 7 4 5 1 2 2 4 4 2 1 5 2 . 6 3 6 2 3 Terminals 34 | . 2 2 6 2 2 1 . 2 2 4 . 1 1 2 . 1 3 . 1 2 Fabricators 8 | . . . . . 1 . . . 1 . . . 1 . . 1 . 2 1 1 Repair Stations 9 | . . . 1 1 . . 1 . . . . . 2 . . 1 . 3 . . Recycling Units . | . . . . . . . . . . . . . . . . . . . . . Scanalyzers 6 | . . . . 1 1 . . . . . 1 . . . . 2 . 1 . . Garrison Access 6 | . . . . . 1 . 1 . 1 . 1 . 1 . . 1 . . . . Total Hacks 153 | . 7 5 20 13 14 1 3 4 7 10 10 2 12 4 . 13 6 15 3 4 Successful 80 | . 4 3 13 8 8 1 2 2 3 1 9 1 7 1 . 6 4 5 1 1 Failed 73 | . 3 2 7 5 6 . 1 2 4 9 1 1 5 3 . 7 2 10 2 3 Catastrophic 11 | . . . 1 . 3 . . . 1 1 . . 1 2 . . . 1 . 1 Database Lockouts . | . . . . . . . . . . . . . . . . . . . . . Manual 54 | . 7 5 15 3 8 . . . 4 . . . . . . 2 3 1 2 4 Terminals 79 | . 7 5 15 5 8 1 . 4 4 10 . 2 1 4 . 2 6 . 2 3 Fabricators 13 | . . . . . 2 . . . 2 . . . 3 . . 1 . 3 1 1 Repair Stations 32 | . . . 5 6 . . 2 . . . . . 7 . . 2 . 10 . . Recycling Units . | . . . . . . . . . . . . . . . . . . . . . Scanalyzers 23 | . . . . 2 3 . . . . . 9 . . . . 7 . 2 . . Garrison Access 6 | . . . . . 1 . 1 . 1 . 1 . 1 . . 1 . . . . Terminal Hacks 23 | . 3 1 6 2 1 1 . 2 . 1 . 1 1 1 . . 3 . . . Record 1 | . . . . 1 . . . . . . . . . . . . . . . . Robot Analysis 7 | . 3 1 3 . . . . . . . . . . . . . . . . . Prototype ID Bank 1 | . . . . . . . . . . . . . 1 . . . . . . . Open Door 4 | . . . 2 . . . . 1 . . . . . . . . 1 . . . Emergency Access Points 5 | . . . . . . 1 . 1 . 1 . 1 . . . . 1 . . . Unreport Threat 1 | . . . . . 1 . . . . . . . . . . . . . . . Zone Layout 2 | . . . 1 1 . . . . . . . . . . . . . . . . Patrol Navigation 2 | . . . . . . . . . . . . . . 1 . . 1 . . . Fabricator Hacks 4 | . . . . . 2 . . . . . . . 1 . . . . 1 . . Network Status 2 | . . . . . 1 . . . . . . . . . . . . 1 . . Load Schematic 1 | . . . . . . . . . . . . . 1 . . . . . . . Build 1 | . . . . . 1 . . . . . . . . . . . . . . . Repair Station Hacks 15 | . . . 5 3 . . 1 . . . . . 4 . . . . 2 . . Scan Component 8 | . . . 2 1 . . 1 . . . . . 2 . . . . 2 . . Repair 5 | . . . 2 1 . . . . . . . . 2 . . . . . . . Refit 2 | . . . 1 1 . . . . . . . . . . . . . . . . Recycling Unit Hacks . | . . . . . . . . . . . . . . . . . . . . . Scanalyzer 18 | . . . . 2 3 . . . . . 8 . . . . 4 . 1 . . Insert Component 9 | . . . . 1 1 . . . . . 3 . . . . 3 . 1 . . Analyze 9 | . . . . 1 2 . . . . . 5 . . . . 1 . . . . Garrison Access Hacks 6 | . . . . . 1 . 1 . 1 . 1 . 1 . . 1 . . . . Unlock Access 6 | . . . . . 1 . 1 . 1 . 1 . 1 . . 1 . . . . Unauthorized Hacks 14 | . 1 2 2 1 1 . . . 2 . . . . . . 1 1 1 1 1 Terminals 12 | . 1 2 2 1 1 . . . 2 . . . . . . 1 1 . 1 . Botnet 12 | . 1 2 2 1 1 . . . 2 . . . . . . 1 1 . 1 . Fabricators 1 | . . . . . . . . . . . . . . . . . . . . 1 Download 1 | . . . . . . . . . . . . . . . . . . . . 1 Repair Stations . | . . . . . . . . . . . . . . . . . . . . . Recycling Units . | . . . . . . . . . . . . . . . . . . . . . Scanalyzers 1 | . . . . . . . . . . . . . . . . . . 1 . . Extract 1 | . . . . . . . . . . . . . . . . . . 1 . . Garrison Access . | . . . . . . . . . . . . . . . . . . . . . Data Cores Recovered . | . . . . . . . . . . . . . . . . . . . . . Used . | . . . . . . . . . . . . . . . . . . . . . Hacking Detections 50 | . 2 2 4 3 4 . 1 2 4 4 1 . 4 2 . 6 1 6 2 2 Full Trace Events 17 | . 1 1 3 1 . . . . . 3 1 . 1 2 . 1 . 2 . 1 Feedback Events . | . . . . . . . . . . . . . . . . . . . . . Feedback Blocked . | . . . . . . . . . . . . . . . . . . . . . Robot Schematics Acquired . | . . . . . . . . . . . . . . . . . . . . . Robots Built 1 | . . . . . 1 . . . . . . . . . . . . . . . Authchips . | . . . . . . . . . . . . . . . . . . . . . Time 81 | . . . . . 81 . . . . . . . . . . . . . . . Total Robot Build Rating 1 | . . . . . 1 . . . . . . . . . . . . . . . Part Schematics Acquired 5 | . . . . 1 . . . . . . 2 . . . . . . 1 . 1 Parts Built . | . . . . . . . . . . . . . . . . . . . . . Authchips . | . . . . . . . . . . . . . . . . . . . . . Time . | . . . . . . . . . . . . . . . . . . . . . Total Part Build Rating . | . . . . . . . . . . . . . . . . . . . . . Parts Repaired 5 | . . . 2 1 . . . . . . . . 2 . . . . . . . Time 147 | . . . 77 26 . . . . . . . . 44 . . . . . . . Parts Recycled . | . . . . . . . . . . . . . . . . . . . . . Recycled Matter . | . . . . . . . . . . . . . . . . . . . . . Retrieved Matter . | . . . . . . . . . . . . . . . . . . . . . Retrieved Components . | . . . . . . . . . . . . . . . . . . . . . Parts Scanalyzed 6 | . . . . 1 1 . . . . . 3 . . . . 1 . . . . Part Schematics Acquired 3 | . . . . 1 . . . . . . 2 . . . . . . . . . Parts Damaged 1 | . . . . . . . . . . . 1 . . . . . . . . . Bothacking | -11 -10 -9 -9 -8 -7 -7 -6 -6 -6 -6 -5 -5 -5 -5 -4 -3 -3 -3 -2 -1 ------------ Run | Jun Mat Mat Sto Mat Fac Gar Fac Gar Fac Gar Fac Gar Fac Gar Fac Res Gar Res Res Acc Used RIF Installer 7 | . . . . . . 1 . 1 . 2 . 1 . 1 . . 1 . . . Signal Jammer 1 | . . . . . . . . 1 . . . . . . . . . . . . Structural Interface 1 | . . . . . . . . . . . . . . . . . 1 . . . Autooverride 2 | . . . . . . . . . . 1 . . . 1 . . . . . . Autoassimilate 2 | . . . . . . . . . . 1 . 1 . . . . . . . . Robots Hacked 182 | . . . . . . . . . 14 13 4 12 15 26 . 24 17 48 3 6 Non-combat 9 | . . . . . . . . . 2 . 1 . 4 . . 1 . 1 . . Combat 173 | . . . . . . . . . 12 13 3 12 11 26 . 23 17 47 3 6 Autooverrided 55 | . . . . . . . . . . . 2 3 3 10 . 12 7 14 . 4 Autoassimilated 55 | . . . . . . . . . . . . 1 1 5 . 8 8 27 3 2 Robot Hacks Applied 79 | . . . . . . . . . 16 13 2 10 11 11 . 6 3 7 . . no_distress 6 | . . . . . . . . . 2 . 1 . 2 . . 1 . . . . find_fabricator 2 | . . . . . . . . . 1 . . . . . . 1 . . . . find_dsf 2 | . . . . . . . . . 1 . . . . . . 1 . . . . find_recycling 1 | . . . . . . . . . . . . . 1 . . . . . . . ignore_parts 2 | . . . . . . . . . . . . . 1 . . . . 1 . . scatter_targeting 1 | . . . . . . . . . . 1 . . . . . . . . . . disrupt_area 2 | . . . . . . . . . . . . . . 2 . . . . . . reboot_system 1 | . . . . . . . . . . 1 . . . . . . . . . . formatsys_high 62 | . . . . . . . . . 12 11 1 10 7 9 . 3 3 6 . . Relay Couplers Released 95 | . . . . . . 23 . 5 . 27 . 15 . 12 . . 11 2 . . Machine Destruction 92 | . . . . . . 20 . 5 . 27 . 15 . 12 . . 11 2 . . Programmers 3 | . . . . . . 3 . . . . . . . . . . . . . . Attached 44 | . . . . . . 2 2 1 3 12 1 4 5 5 1 . 6 1 1 . Fabnet Peak Effective % . | . . . . . . . . . . . . . . . . . . . . . Robots Rewired 17 | . . . . . . . . 4 . 3 . 2 1 6 . . . . 1 . Allies Hacked 10 | . . . . . . . . . 1 3 . . 2 . . . 1 3 . . Hacks Repelled . | . . . . . . . . . . . . . . . . . . . . . Allies | -11 -10 -9 -9 -8 -7 -7 -6 -6 -6 -6 -5 -5 -5 -5 -4 -3 -3 -3 -2 -1 -------- Run | Jun Mat Mat Sto Mat Fac Gar Fac Gar Fac Gar Fac Gar Fac Gar Fac Res Gar Res Res Acc Total Allies 196 | . . . . . 1 . . 6 12 16 3 14 15 30 . 23 19 47 4 6 Largest Group 12 | . . . . . 1 . . 4 7 11 7 12 9 9 9 11 9 11 2 3 Highest-Rated Group 582 | . . . . . 6 . . 164 227 426 332 485 479 441 441 516 477 582 86 155 Highest-Rated Ally 116 | . . . . . 6 . . 80 47 95 95 116 116 85 49 89 64 64 58 58 Total Orders 16 | . . . . . . . . . 2 . . 9 3 . . . 2 . . . STAY 8 | . . . . . . . . . 1 . . 4 2 . . . 1 . . . ROAM 1 | . . . . . . . . . . . . 1 . . . . . . . . FOLLOW 7 | . . . . . . . . . 1 . . 4 1 . . . 1 . . . Ally Attacks 1318 | . . . . . . . . 92 111 119 12 119 136 112 27 148 47 373 11 11 Total Damage 38708 | . . . . . . . . 2833 2219 3372 418 3723 5659 1833 1075 4276 1485 11117 296 402 Kills 252 | . . . . . . . . 38 12 22 5 29 35 14 9 20 8 56 1 3 Allies Corrupted 15 | . . . . . . . . . . . . . 2 . . 6 . 6 1 . Allies Melted 2 | . . . . . . . . . . . . . . 1 . . . 1 . . Intel | -11 -10 -9 -9 -8 -7 -7 -6 -6 -6 -6 -5 -5 -5 -5 -4 -3 -3 -3 -2 -1 ------- Run | Jun Mat Mat Sto Mat Fac Gar Fac Gar Fac Gar Fac Gar Fac Gar Fac Res Gar Res Res Acc Robot Analysis Total 6 | . 3 1 2 . . . . . . . . . . . . . . . . . Derelict Logs Recovered . | . . . . . . . . . . . . . . . . . . . . . Drone Launches . | . . . . . . . . . . . . . . . . . . . . . Drone Recoveries . | . . . . . . . . . . . . . . . . . . . . . Exploration | -11 -10 -9 -9 -8 -7 -7 -6 -6 -6 -6 -5 -5 -5 -5 -4 -3 -3 -3 -2 -1 ------------- Run | Jun Mat Mat Sto Mat Fac Gar Fac Gar Fac Gar Fac Gar Fac Gar Fac Res Gar Res Res Acc Turns Passed 25034 | 79 247 194 1576 1139 843 4027 396 1415 1082 2392 175 1834 1359 2057 277 978 1547 1821 638 958 Spaces Moved 13455 | 19 162 93 684 568 540 1953 206 567 621 1357 110 951 807 1347 167 580 891 979 345 508 Core 76 | . . . 75 . . . . . . . . 1 . . . . . . . . Treads 1578 | . . . 362 36 . 325 206 338 311 . . . . . . . . . . . Legs 10618 | 19 162 93 44 532 494 1150 . 229 308 1357 110 950 549 1152 167 580 891 979 345 507 Wheels 727 | . . . 203 . 46 478 . . . . . . . . . . . . . . Hover 456 | . . . . . . . . . 2 . . . 258 195 . . . . . 1 Flight . | . . . . . . . . . . . . . . . . . . . . . Fastest Speed 40 | 120 120 120 100 120 105 105 160 97 100 105 120 120 40 53 120 118 118 120 116 60 Average Speed 130 | 120 120 120 165 126 131 164 160 173 133 111 120 120 100 112 120 119 119 120 119 119 Slowest Speed 700 | 120 120 120 500 260 270 260 160 400 290 120 120 700 560 190 120 190 120 190 120 190 Overloaded Moves . | . . . . . . . . . . . . . . . . . . . . . Propulsion Burnouts . | . . . . . . . . . . . . . . . . . . . . . Robots Hopped 1 | . . . . . . . . . . . . . . . . . . . . 1 Cave-ins Triggered 3 | . . . 1 . . . . . . . . . . . . 1 . . 1 . Exploration Rate (%) 40 | 4 40 10 83 37 20 99 7 63 14 96 4 84 16 86 5 14 93 33 15 17 Regions Visited 20 Branch Regions 1 Pre-discovered Areas . | . . . . . . . . . . . . . . . . . . . . . Known Exits Taken 6 | . . . . . 1 . 1 . 1 . 1 . 1 . . 1 . . . . Unknown Exits Taken 8 | 1 1 1 1 1 . . . . . . . . . . 1 . . 1 1 . Scrap Searched . | . . . . . . . . . . . . . . . . . . . . . Spaces Dug 49 | . 3 . 1 . . 11 6 10 . 5 . . . 5 . 7 1 . . . Terrain Destroyed 427 | . 3 . 43 . . 84 6 17 3 16 . . 23 13 . 28 13 91 75 12 Melee 10 | . 3 . 1 . . 6 . . . . . . . . . . . . . . Projectile 135 | . . . . . . 7 6 17 3 9 . . 15 13 . 28 13 18 4 2 AOE 282 | . . . 42 . . 71 . . . 7 . . 8 . . . . 73 71 10 Terrain Rammed . | . . . . . . . . . . . . . . . . . . . . . Walls Destroyed . | . . . . . . . . . . . . . . . . . . . . . Machines Disabled . | . . . . . . . . . . . . . . . . . . . . . Actions | -11 -10 -9 -9 -8 -7 -7 -6 -6 -6 -6 -5 -5 -5 -5 -4 -3 -3 -3 -2 -1 --------- Run | Jun Mat Mat Sto Mat Fac Gar Fac Gar Fac Gar Fac Gar Fac Gar Fac Res Gar Res Res Acc Total 18843 | 58 188 139 946 856 615 2460 235 842 817 2047 149 1602 1233 1772 233 775 1250 1388 482 756 Wait 2302 | 28 1 20 99 168 5 122 . 65 51 375 25 530 199 155 25 55 180 126 9 64 Move 13434 | 18 161 92 683 567 539 1952 206 565 621 1356 110 950 806 1346 166 578 890 978 344 506 Hop 1 | . . . . . . . . . . . . . . . . . . . . 1 Pick Up 365 | 2 3 2 23 25 15 45 2 5 17 29 2 18 23 15 6 19 32 38 20 24 Fast Attach 110 | . . . . . 4 18 . 15 4 5 2 4 12 12 2 9 3 4 8 8 Attach 202 | . 1 . 13 6 7 17 3 1 15 14 1 3 14 10 2 10 22 25 15 23 Detach 40 | . . . . . 1 3 1 . 2 1 . 1 5 3 . 5 3 2 4 9 Swap 314 | 1 1 3 14 18 7 40 3 10 13 36 1 13 25 22 7 12 13 31 18 26 Drop 374 | . 3 2 14 13 10 52 . 23 18 19 2 23 31 23 11 27 28 33 16 26 Fire 1385 | 9 8 20 82 59 26 137 20 112 70 154 6 53 112 117 14 58 74 140 48 66 Melee 35 | . 10 . 15 . . 10 . . . . . . . . . . . . . . Ram 2 | . . . . . . . . . . 1 . . 1 . . . . . . . Kick 11 | . . . . . 1 . . . . 3 . . 2 . . . 1 2 . 2 Crush 3 | . . . 3 . . . . . . . . . . . . . . . . . Escape Stasis 129 | . . . . . . 62 . 21 . 10 . . . 35 . 1 . . . . Rewire 136 | . . . . . . 2 . 25 6 44 . 7 3 34 . 1 4 9 . 1 Trap . | . . . . . . . . . . . . . . . . . . . . . Miscellaneous . | . . . . . . . . . . . . . . . . . . . . . Route ------- -11/Junkyard -10/Materials (discovered 2 exits: *Mat / [*Min]) -9/Materials -9/Storage -8/Materials -7/Factory -7/Garrison (discovered 3 exits: *Fac x3) -6/Factory -6/Garrison -6/Factory -6/Garrison (discovered 3 exits: *Fac x3) -5/Factory -5/Garrison (discovered 3 exits: *Fac x3) -5/Factory -5/Garrison (discovered 3 exits: [*Fac x3]) -4/Factory -3/Research (discovered 2 exits: *Res / Gar) -3/Garrison (discovered 3 exits: *Res x3) -3/Research -2/Research -1/Access History --------- Turn | Location | Event 7 | -11/Junkyard | Discovered new exit (range 3) 80 | -11/Junkyard | Entered Materials 207 | -10/Materials | Discovered new exit (range 7) 293 | -10/Materials | Discovered new exit (range 10) 320 | -10/Materials | Build established: Mutant 327 | -10/Materials | Entered another Materials area 327 | -9/Materials | Evolved 2 slots: Utility x2 510 | -9/Materials | Discovered new exit (range 10) 521 | -9/Materials | Entered Storage 672 | -9/Storage | Crushed by falling debris 695 | -9/Storage | Destroyed 7 combat bots 703 | -9/Storage | Lost 4 parts (1p2n1u) 849 | -9/Storage | Garrison activated, responded to threat 918 | -9/Storage | Core integrity fell below 50% 1767 | -9/Storage | Build established: Scavenger-Mutant 1788 | -9/Storage | Repaired Adv. Beam Cannon 1815 | -9/Storage | Repaired Aluminum Leg 2077 | -9/Storage | Discovered new exit (range 12) 2097 | -9/Storage | Entered Materials 2097 | -8/Materials | Evolved 2 slots: Power x1, Propulsion x1 2157 | -8/Materials | Repaired Lgt. Treads 2798 | -8/Materials | Discovered new exit (range 11) 3236 | -8/Materials | Entered Factory 3236 | -7/Factory | Evolved 2 slots: Propulsion x1, Utility x1 3687 | -7/Factory | Fabricated K-01 Serf? 3824 | -7/Factory | Cargo convoy interrupted 3920 | -7/Factory | Lost 7 parts (1p3n2u1w) 3931 | -7/Factory | Build established: Mutant 4072 | -7/Factory | Identified exit to Garrison 4079 | -7/Factory | Entered Garrison 4142 | -7/Garrison | Triggered checkpoint 4194 | -7/Garrison | Garrison Relay disabled 4366 | -7/Garrison | Spotted B-75 Beast 4388 | -7/Garrison | Destroyed B-75 Beast 4754 | -7/Garrison | Triggered checkpoint 4789 | -7/Garrison | Garrison Relay disabled 4831 | -7/Garrison | Discovered new exit (range 12) 5124 | -7/Garrison | Triggered checkpoint 5237 | -7/Garrison | Discovered new exit (range 11) 5358 | -7/Garrison | Triggered checkpoint 5400 | -7/Garrison | Garrison Relay disabled 5457 | -7/Garrison | Build established: Scavenger-Mutant 5604 | -7/Garrison | Triggered checkpoint 5710 | -7/Garrison | Triggered checkpoint 5930 | -7/Garrison | Installed Relay Interface Framework 5936 | -7/Garrison | Discovered new exit (range 3) 5993 | -7/Garrison | Garrison Relay disabled 6082 | -7/Garrison | Triggered checkpoint 6091 | -7/Garrison | Triggered checkpoint 6131 | -7/Garrison | Destroyed 8 combat bots 6613 | -7/Garrison | Phase Generator disabled 7123 | -7/Garrison | Lost 3 parts (1p2n) 7854 | -7/Garrison | Garrison Relay disabled 8106 | -7/Garrison | Entered Factory 8106 | -6/Factory | Evolved 2 slots: Utility x2 8456 | -6/Factory | First assault squad dispatched 8481 | -6/Factory | Garrison activated, responded to threat 8502 | -6/Factory | Identified exit to Garrison 8502 | -6/Factory | Entered Garrison 8519 | -6/Garrison | Assembled breached garrison interior 8673 | -6/Garrison | Found embedded Infiltrators 8706 | -6/Garrison | Garrison Relay disabled 9083 | -6/Garrison | Discovered new exit (range 13) 9737 | -6/Garrison | Destroyed 14 combat bots 9753 | -6/Garrison | Expanded RIF knowledge: Signal Jamming 9864 | -6/Garrison | Destroyed 12 combat bots 9917 | -6/Garrison | Entered Factory 10267 | -6/Factory | First assault squad dispatched 10383 | -6/Factory | Build established: Bothacker-Mutant 10863 | -6/Factory | Garrison activated, responded to threat 10992 | -6/Factory | Identified exit to Garrison 10999 | -6/Factory | Entered Garrison 10999 | -6/Garrison | Accompanied by 5 allies 11006 | -6/Garrison | Triggered checkpoint 11072 | -6/Garrison | Triggered checkpoint 11106 | -6/Garrison | Garrison Relay disabled 11175 | -6/Garrison | Triggered checkpoint 11178 | -6/Garrison | Triggered checkpoint 11232 | -6/Garrison | Triggered checkpoint 11263 | -6/Garrison | Triggered checkpoint 11370 | -6/Garrison | Triggered checkpoint 11396 | -6/Garrison | Garrison Relay disabled 11409 | -6/Garrison | Expanded RIF knowledge: Autooverride 11782 | -6/Garrison | Triggered checkpoint 11819 | -6/Garrison | Garrison Relay disabled 11885 | -6/Garrison | Discovered new exit (range 8) 11887 | -6/Garrison | Found embedded Infiltrators 12374 | -6/Garrison | Garrison Relay disabled 12585 | -6/Garrison | Discovered new exit (range 11) 12614 | -6/Garrison | Triggered checkpoint 12626 | -6/Garrison | Garrison Relay disabled 12919 | -6/Garrison | Garrison Relay disabled 12930 | -6/Garrison | Triggered checkpoint 12954 | -6/Garrison | P-60 Hacker assimilated allied Soldier 5i 12957 | -6/Garrison | System corruption reached 10% 12957 | -6/Garrison | P-60 Hacker assimilated allied Gladiator 5a 12991 | -6/Garrison | P-60 Hacker assimilated allied Soldier 5k 13083 | -6/Garrison | Discovered new exit (range 3) 13104 | -6/Garrison | Expanded RIF knowledge: Autoassimilate 13388 | -6/Garrison | Build established: Botlord-Mutant 13391 | -6/Garrison | Entered Factory 13391 | -5/Factory | Accompanied by 7 allies 13391 | -5/Factory | Evolved 2 slots: Propulsion x1, Utility x1 13553 | -5/Factory | Identified exit to Garrison 13566 | -5/Factory | Entered Garrison 13566 | -5/Garrison | Accompanied by 6 allies 13624 | -5/Garrison | Triggered checkpoint 13647 | -5/Garrison | Garrison Relay disabled 13738 | -5/Garrison | Spotted B-75 Beast 13739 | -5/Garrison | Autoassimilated Beast 6a with RIF 13746 | -5/Garrison | Triggered checkpoint 13747 | -5/Garrison | Triggered checkpoint 13758 | -5/Garrison | Triggered checkpoint 13768 | -5/Garrison | Triggered checkpoint 13804 | -5/Garrison | P-70 Sage assimilated allied Soldier 6b 13961 | -5/Garrison | Discovered new exit (range 10) 13970 | -5/Garrison | Triggered checkpoint 13997 | -5/Garrison | Garrison Relay disabled 14194 | -5/Garrison | Triggered checkpoint 14206 | -5/Garrison | Rewired B-86 Titan 14212 | -5/Garrison | Rewired B-86 Titan 14367 | -5/Garrison | Garrison Relay disabled 14400 | -5/Garrison | Discovered new exit (range 3) 14554 | -5/Garrison | Triggered checkpoint 14648 | -5/Garrison | Expanded RIF knowledge: Autoassimilate 14781 | -5/Garrison | Discovered new exit (range 15) 14822 | -5/Garrison | Garrison Relay disabled 15400 | -5/Garrison | Entered Factory 15400 | -5/Factory | Accompanied by 9 allies 15475 | -5/Factory | Repaired Remote Datajack 15700 | -5/Factory | First assault squad dispatched 15890 | -5/Factory | Repaired Gatling Laser 16261 | -5/Factory | Lost 3 parts (1n1u1w) 16336 | -5/Factory | Spotted B-75 Beast 16349 | -5/Factory | Destroyed B-75 Beast 16400 | -5/Factory | Allied Derelicts emerged from ambush trap array 16419 | -5/Factory | P-70 Sage assimilated allied 3D-2RU(g) 16524 | -5/Factory | Garrison activated, responded to threat 16574 | -5/Factory | System corruption reached 10% 16757 | -5/Factory | Identified exit to Garrison 16759 | -5/Factory | Entered Garrison 16759 | -5/Garrison | Accompanied by 1 ally 16832 | -5/Garrison | Triggered checkpoint 16852 | -5/Garrison | Expanded RIF knowledge: Autooverride 16866 | -5/Garrison | Garrison Relay disabled 16908 | -5/Garrison | Triggered checkpoint 16976 | -5/Garrison | Triggered checkpoint 16977 | -5/Garrison | Spotted B-75 Beast 16978 | -5/Garrison | Assimilated Beast 6b with formatsys_high 17026 | -5/Garrison | Triggered checkpoint 17068 | -5/Garrison | Triggered checkpoint 17255 | -5/Garrison | Garrison Relay disabled 17334 | -5/Garrison | Discovered new exit (range 14) 17480 | -5/Garrison | Discovered new exit (range 15) 17500 | -5/Garrison | Triggered checkpoint 17531 | -5/Garrison | Garrison Relay disabled 17738 | -5/Garrison | Triggered checkpoint 17848 | -5/Garrison | Triggered checkpoint 17853 | -5/Garrison | Garrison Relay disabled 17940 | -5/Garrison | Discovered new exit (range 12) 18380 | -5/Garrison | Found Unknown Device 18380 | -5/Garrison | Identified Antimissile System 18384 | -5/Garrison | Found Enh. Force Lance 18422 | -5/Garrison | Triggered checkpoint 18816 | -5/Garrison | Entered Factory 18816 | -4/Factory | Accompanied by 9 allies 18816 | -4/Factory | Evolved 2 slots: Utility x2 19014 | -4/Factory | Discovered new exit (range 9) 19093 | -4/Factory | Entered Research 19093 | -3/Research | Accompanied by 8 allies 19093 | -3/Research | Evolved 2 slots: Propulsion x1, Weapon x1 19343 | -3/Research | First assault squad dispatched 19722 | -3/Research | Crushed by falling debris 19795 | -3/Research | Spotted B-86 Titan 19821 | -3/Research | Destroyed B-86 Titan 19850 | -3/Research | Discovered new exit (range 16) 19871 | -3/Research | Garrison activated, responded to threat 20063 | -3/Research | Identified exit to Garrison 20071 | -3/Research | Entered Garrison 20100 | -3/Garrison | Triggered checkpoint 20205 | -3/Garrison | Garrison Relay disabled 20285 | -3/Garrison | Spotted B-86 Titan 20331 | -3/Garrison | Triggered checkpoint 20334 | -3/Garrison | Destroyed B-86 Titan 20336 | -3/Garrison | Build established: Botlord-Gunner 20364 | -3/Garrison | Triggered checkpoint 20442 | -3/Garrison | Triggered checkpoint 20578 | -3/Garrison | Triggered checkpoint 20620 | -3/Garrison | Expanded RIF knowledge: Structural Interface 20738 | -3/Garrison | Garrison Relay disabled 20758 | -3/Garrison | Triggered checkpoint 20781 | -3/Garrison | Discovered new exit (range 13) 20862 | -3/Garrison | Heavy support dispatched to Research 20886 | -3/Garrison | Found Prototype Device 20887 | -3/Garrison | Identified Active Sensor Suite 20928 | -3/Garrison | H-XX Assembler disabled 21137 | -3/Garrison | Discovered new exit (range 11) 21300 | -3/Garrison | Triggered checkpoint 21325 | -3/Garrison | Garrison Relay disabled 21341 | -3/Garrison | Rescued a captive Derelict 21348 | -3/Garrison | Rescued a captive Derelict 21537 | -3/Garrison | Triggered checkpoint 21573 | -3/Garrison | Discovered new exit (range 12) 21618 | -3/Garrison | Entered Research 21618 | -3/Research | Accompanied by 9 allies 21627 | -3/Research | Build established: Botlord-Mutant 21780 | -3/Research | Found Prototype Processor 21781 | -3/Research | Identified Spectral Analyzer 21869 | -3/Research | Spotted B-86 Titan 21888 | -3/Research | Allies destroyed B-86 Titan 21893 | -3/Research | First assault squad dispatched 22070 | -3/Research | Found Prototype Launcher 22076 | -3/Research | P-80 Master assimilated allied Veteran 8s 22085 | -3/Research | P-80 Master assimilated allied Assassin 8a 22214 | -3/Research | Identified Mni. Smartbomb Launcher 22581 | -3/Research | Build established: Botlord-Tank 22972 | -3/Research | P-80 Master assimilated allied Veteran 8*28 22987 | -3/Research | Garrison activated, responded to threat 23007 | -3/Research | System corruption reached 10% 23058 | -3/Research | Destroyed 7 combat bots 23058 | -3/Research | Lost 4 parts (1n2u1w) 23385 | -3/Research | Discovered new exit (range 23) 23396 | -3/Research | High security lockdown imminent 23439 | -3/Research | Entered another Research area 23439 | -2/Research | Accompanied by 2 allies 23439 | -2/Research | Evolved 2 slots: Utility x2 23495 | -2/Research | Build established: Bothacker-Mutant 23531 | -2/Research | Crushed by falling debris 23549 | -2/Research | Spotted B-90 Cyclops 23630 | -2/Research | Found Prototype Launcher 23631 | -2/Research | Identified Com. Tesla Bomb Launcher 23651 | -2/Research | Lost 3 parts (1p1u1w) 23735 | -2/Research | First assault squad dispatched 23884 | -2/Research | Spotted B-90 Cyclops 23893 | -2/Research | Found Prototype Launcher 23893 | -2/Research | Identified Enh. Gamma Bomb Array 23898 | -2/Research | Found Enh. Gamma Bomb Array 24015 | -2/Research | High security lockdown imminent 24026 | -2/Research | System corruption reached 10% 24037 | -2/Research | Destroyed 7 combat bots 24053 | -2/Research | Discovered new exit (range 20) 24077 | -2/Research | Entered Access 24077 | -1/Access | Evolved 2 slots: Propulsion x2 24248 | -1/Access | Build established: Scavenger-Gunner 24369 | -1/Access | First assault squad dispatched 24456 | -1/Access | System corruption reached 10% 24459 | -1/Access | Core integrity fell below 50% 24463 | -1/Access | Core integrity fell below 20% 24524 | -1/Access | Lost 3 parts (3n) 24707 | -1/Access | Found Antimissile System 25035 | -1/Access | Destroyed by B-74 Champion with Powered Hammer Last Messages --------------- 25027_ E-15 Imp unfolds itself. 25029_ Myomer Leg destroyed. 25030_ Relay Coupler [Demolisher] destroyed. 25030_ Quantum Reactor blown off. 25030_ Graphene Brace blown off. 25030_ Core Analyzer blown off. 25030_ Adv. Focal Shield blown off. 25030_ E-15 Imp destroyed. 25031_ Dropped Lrg. Storage Unit. 25031_ Enh. Nova Cannon crushed and broken. 25031_ Lgt. Quantum Reactor crushed and broken. 25031_ Antimissile System crushed and broken. 25031_ Lgt. Quantum Reactor crushed and broken. 25031_ Quantum Reactor crushed and broken. 25033_ Acquired Corrupted Lgt. Antimatter Reactor. 25035_ Enh. Gamma Bomb Array destroyed. 25035_ Core Analyzer destroyed. 25035_ System corrupted by crushing effect (+1). [Achievement: 30k Club] [Achievement: 40k Club] Map ----- +----------------------------------------------------+ | ?????????????????????????????????????????????????? | | ?????????????????????????????????????????????????? | | ?????????????????????????????????????????????????? | | ?????????????????????????????????????????????????? | | ?????????????????????????????????????????????????? | | ?????????????????????????????????????????????????? | | ?????????????????????????????????????????????????? | | ?????????????????????????????????????????????????? | | ?????????????????????????????????????????????????? | | ?????????????????????????????????????????????????? | | ?????????????????????????????????????????????????? | | ?????????????????????????????????????????????????? | | ?????????????????????????????????????????????????? | | ?????????????????????????????????????????????????? | | ?????????????????????????????????????????????????? | | ?????????????????????????????????????????????????? | | ?????????????????????????????????????????????????? | | ?????????????????????????????????????????????????? | | ?????????????????????????????????????????????????? | | ?????????????????????????????????????????????????? | | ?????????????????????????????????????????????????? | | ???????????????????????#####?????????????????????? | | ???????????### #########g%[#?????????????????????? | | ![%%ggl=!###???????????????????? | | #########[ %[%#???????????????????? | | ? ????????????????##@#####??????????????????? | | ???????#######b%== #??????????????????? | | ????# #!%%* #??????????????????? | | = ### #!=!/ #??????????????????? | | =% "%" u!* * #??????????????????? | | ???????????###"### !=# #??????????????????? | | ?????????????????# % # #??????????????????? | | ?????????????????## ###########????????????????? | | ??????????????????# # #????????????????? | | ??????????????????# + #????????????????? | | ??????????????????# # #????????????????? | | ??????????????????# # #????????????????? | | ??????????????????# # " #????????????????? | | ??????????????????# # """ #????????????????? | | ??????????????????# # """ #????????????????? | | ?????????????????## + " #????????????????? | | ?????????????????+ ###########????????????????? | | ???????????????#####+#####???????????????????????? | | ??????#????????# #???????????????????????? | | ??????# ???????# #???????????????????????? | | ??????# ???????# " #???????????????????????? | | ??????# ???????# """ #???????????????????????? | | ??????# ???????# """#???????????????????????? | | ??????# ???????# " #???????????????????????? | | +###### ####???# #???????????????????????? | +----------------------------------------------------+ Best States ------------- Heat Dissipation 106 Coolant Potential 100 Energy Generation 53 Energy Capacity 600 Matter Stores 300 Matter Capacity 300 Sight Range 24 Robot Scan Range 15 Terrain Scan Range 20 Terrain Scan Density 10 ECM Strength 2 Cloak Strength 3 Additional Mass Support 12 Armor Coverage 1200 Resistance: KI 50 Resistance: TH 50 Resistance: EX 20 Resistance: EM 20 Resistance: I 20 Resistance: S 20 Resistance: P 20 Point Defense Rating 480 Weapon Cycling 20 Phase Shifting 15 Evasion (%) 70 Targeting Accuracy 16 Target Analysis 12 Core Analysis 9 Armor Integrity Analysis 40 Recoil Reduction 3 Energy Filtering 45 Particle Charging 25 Kinecelleration 40 Offensive Hacking 22 Defensive Hacking 10 Relay Coupler Types 6 Relay Coupler Value 237 Authchip Count 3 Item Schematics ----------------- Imp. Assault Rifle | -8/Materials | Scanalyzed Nuclear Pulse Array | -5/Factory | Scanalyzed Gatling Laser | -5/Factory | Scanalyzed Lrn. Tractor Beam | -3/Research | Extracted Cmb. Linear Gravjet | -1/Access | Downloaded Robot Schematics ------------------ None Fabricated ------------ K-01 Serf | x1 | -7/Factory | Preloaded Alien Tech Used ----------------- None Achievements -------------- 30k Club 40k Club Beloved Collateral Damage Factory Defaults Generalissimo No Signal Pwned Short-term Sacrifices Total Silence Challenges ------------ None Game ------ Seed BladeReactiveUnit Manual? 0 Play Time 06:08:34 Cumulative 71.2 hours Start 2023.03.18 @ 23:02:12 End 2023.12.13 @ 05:48:22 Sessions 2 Manual Loads 0 Difficulty Adventurer Special Mode None Game No. 78 Rogue 66 Adventurer 12 Explorer 0 Win Type - Total 0 Types 0/0/0/0/0/0/0/0/0 Lore% 27 Gallery% 56 Achievement% 44 Wizard Run 0 Options --------- ASCII 0 Keyboard 0 Movement Mouse Keybinds 0 Fullscreen 1 Font 36/Smallcaps Map View 76x50 Tactical HUD 1 Map Filters NONE Filters NONE Steam 1 RUN: 1a4ad2e7-2f80-4b75-899f-c8dd468d97f3